[Event "AI Cup Div-3 2023"]
[Site "Online"]
[Date "2023.09.25"]
[Round "1.3"]
[White "Durarbayli, Vasif"]
[Black "Sargsyan, Shant"]
[Result "1-0"]
[Annotator "ChessBase"]
[ECO "C85"]
[WhiteElo "2625"]
[BlackElo "2631"]
[PlyCount "59"]
[EventDate "2023.09.18"]
[EventType "k.o."]
[EventCountry "NET"]
[SourceTitle "playchess.com"]
[Source "ChessBase"]
[SourceQuality "1"]
[TimeControl "900+3"]

1. e4 {[%emt 0:00:06]} e5 {[%emt 0:05:10]} 2. Nf3 {[%emt 0:00:04]} Nc6 {[%emt 0:00:03]} 3. Bb5 {[%emt 0:00:04]} a6 {[%emt 0:00:04]} 4. Ba4 {[%emt 0:00:03]} Nf6 {[%emt 0:00:03]} 5. O-O {[%emt 0:00:03]} Be7 {[%emt 0:00:04]} 6. Bxc6 {[%emt 0:00:04]} dxc6 {[%emt 0:00:03]} 7. Re1 {[%emt 0:00:04]} Qd6 {[%emt 0:00:04]} 8. Na3 {[%emt 0:00:04]} Be6 {[%emt 0:00:04]} 9. d4 {[%emt 0:00:05]} Nd7 {[%emt 0:00:05]} 10. c3 {[%emt 0:00:08]} O-O-O {[%emt 0:00:05]} 11. Qe2 {[%emt 0:00:10]} Bg4 {[%emt 0:00:29]} 12. Nc4 {[%emt 0:00:28]} Qe6 {[%emt 0:00:06]} 13. Ncxe5 {[%emt 0:00:55]} Nxe5 {[%emt 0:00:05]} 14. dxe5 {[%emt 0:00:03]} g5 {[%emt 0:01:26]} 15. Be3 {[%emt 0:00:59]} h5 {[%emt 0:00:16]} 16. h3 {[%emt 0:01:03]} Kb8 {[%emt 0:01:17]} 17. b3 {[%emt 0:02:17]} c5 {[%emt 0:00:39]} 18. Qc4 {[%emt 0:00:36]} Qh6 {[%emt 0:00:24]} 19. Nd2 {[%emt 0:02:23]} Be6 {[%emt 0:00:08]} 20. Qe2 {[%emt 0:00:04]} Qg6 {[%emt 0:00:05]} 21. f3 {[%emt 0:00:27]} Qg7 {[%emt 0:00:07]} 22. Nc4 {[%emt 0:00:19]} Bxc4 {[%emt 0:00:04]} 23. Qxc4 {[%emt 0:00:16]} Qxe5 {[%emt 0:00:03]} 24. Rad1 {[%emt 0:00:07]} Bd6 {[%emt 0:00:07]} 25. Kf1 {[%emt 0:00:16]} Qh2 {[%emt 0:00:21]} 26. Bg1 {[%emt 0:00:21]} Qh1 {[%emt 0:00:04]} 27. e5 {[%emt 0:00:29]} Bxe5 {[%emt 0:00:04]} 28. Qxc5 {[%emt 0:00:13]} Bd6 {[%emt 0:01:56]} 29. Qa7+ {[%emt 0:00:06]} Kc8 {[%emt 0:00:03]} 30. Re7 {[%emt 0:00:39]} 1-0

[Event "AI Cup Div-3 2023"]
[Site "Online"]
[Date "2023.09.25"]
[Round "1.3"]
[White "Kravtsiv, Martyn"]
[Black "Robson, Ray"]
[Result "0-1"]
[Annotator "TA"]
[ECO "C42"]
[WhiteElo "2598"]
[BlackElo "2699"]
[PlyCount "146"]
[EventDate "2023.09.18"]
[EventType "k.o."]
[EventCountry "NET"]
[SourceTitle "playchess.com"]
[Source "ChessBase"]
[SourceQuality "1"]
[TimeControl "900+3"]

{[%evp 19,146,13,27,14,17,12,25,2,3,-2,8,0,0,0,0,-21,0,-11,0,-32,-28,-57,-41,-50,0,0,0,0,0,0,0,0,0,0,0,0,0,0,0,0,0,0,0,0,0,0,0,0,0,0,0,0,0,0,-1,-2,0,-8,-8,-8,-8,-19,-19,-21,-20,-32,-32,-32,-32,-39,-37,-38,-32,-64,-64,-64,-35,-39,-2,-43,0,-95,-99,-100,-106,-114,-77,-140,-139,-210,-160,-164,-138,-143,0,-160,-160,-160,-52,-68,0,-165,0,-336,-238,-238,-243,-248,-248,-393,-393,-348,-210,-327,-326,-29978,-495,-29978,-29979,-29982,-29983,-29982,-29983,-29983,-29984,-29984,-29985,-29986,-29987]} 1. e4 {[%emt 0:00:07]} e5 {[%emt 0:00:10]} 2. Nf3 {[%emt 0:00:05]} Nf6 {[%emt 0:03:02]} 3. Nxe5 {[%emt 0:00:16]} d6 {[%emt 0:00:04]} 4. Nf3 {[%emt 0:00:04]} Nxe4 {[%emt 0:00:04]} 5. Qe2 {[%emt 0:00:14]} Qe7 {[%emt 0:00:06]} 6. d3 {[%emt 0:00:03]} Nf6 {[%emt 0:00:04]} 7. Bg5 {[%emt 0:00:04]} Qxe2+ {[%emt 0:00:43]} 8. Bxe2 {[%emt 0:00:03]} Be7 {[%emt 0:00:03]} 9. Nc3 {[%emt 0:00:06]} c6 {[%emt 0:00:14]} 10. O-O-O {[%emt 0:00:06]} h6 $1 {[%emt 0:00:13][%mdl 4] now scores much better than the old 10...Na6.} 11. Bd2 {[%emt 0:00:23] C42: Petroff Defence: 3 Nxe5 and unusual White 3rd moves.} Na6 {[%emt 0:00:43]} 12. h3 {[%emt 0:00:23] [#]} (12. Nd4 $5) 12... Bd7 $5 $146 {[%emt 0:00:26][%mdl 8] An interesting novelty.} ({Predecessor:} 12... Nc7 13. g4 Bd7 14. Rde1 O-O-O 15. Nd4 Rde8 16. f4 Bd8 17. Bf3 d5 18. b4 Ne6 {0-1 Timofeev,A (2574)-Paravyan,D (2617) Titled Tuesday intern op 29th Mar Early blitz 2022 (8)}) 13. g4 {[%emt 0:00:42] White has an edge.} O-O-O {[%emt 0:00:08]} 14. Rde1 {[%emt 0:00:07]} Rde8 {[%emt 0:00:05]} 15. g5 {[%emt 0:03:05]} hxg5 {[%emt 0:00:08]} 16. Nxg5 {[%emt 0:00:03]} Rhf8 {[%emt 0:00:17]} 17. Bf4 {[%emt 0:00:05]} Nc5 {[%emt 0:00:31]} 18. Rhg1 {[%emt 0:01:18]} g6 {[%emt 0:00:21]} 19. h4 {[%emt 0:00:04]} (19. Bg4 $5 {[%cal Re1e7]} Kd8 20. d4 $11) 19... Ne6 {[%emt 0:00:10]} 20. Bg3 {[%emt 0:00:22]} Ng7 {[%emt 0:00:13]} 21. Nce4 {[%emt 0:00:59]} Nf5 {[%emt 0:00:58]} ({Better is} 21... Nxe4 $1 $15 22. dxe4 Bxg5+ {[%mdl 64] Discovered Attack, Remove Defender} 23. hxg5 Rxe4) 22. Nxf6 $1 $11 {[%emt 0:00:12]} Bxf6 {[%emt 0:00:04]} 23. Nh7 {[%emt 0:00:03][%csl LRf6,LRf8]} Nxg3 {[%emt 0:00:14]} (23... Bxh4 24. Bxh4 Rh8 25. Nf6 Rxe2 26. Rxe2 $16) 24. fxg3 {[%emt 0:00:42]} ({Reject} 24. Rxg3 Bd4 25. Nxf8 Bxf2 $17) 24... Bd4 {[%emt 0:00:05] This pair of bishops is nice.} 25. Nxf8 {[%emt 0:01:15]} Bxg1 {[%emt 0:00:05]} 26. Nxd7 {[%emt 0:00:04]} Be3+ {[%emt 0:00:20]} 27. Kd1 {[%emt 0:00:04] [#] Strongly threatening Nf6.} Kxd7 {[%emt 0:00:03][%mdl 4096] Endgame KRB-KRB} 28. Rf1 {[%emt 0:00:03]} f5 {[%emt 0:00:53]} 29. c3 {[%emt 0:00:26]} Bb6 {[%emt 0:01:04]} 30. g4 {[%emt 0:00:10]} fxg4 {[%emt 0:00:06]} 31. Bxg4+ {[%emt 0:00:03]} Ke7 {[%emt 0:00:09]} 32. d4 {[%emt 0:00:34]} Rh8 {[%emt 0:00:07]} 33. Re1+ {[%emt 0:00:03]} Kf7 {[%emt 0:00:06]} 34. Be6+ {[%emt 0:00:21]} Kf6 {[%emt 0:00:13]} 35. Bd7 {[%emt 0:00:12]} Kf7 {[%emt 0:00:47]} 36. Kc2 {[%emt 0:00:10]} Bd8 {[%emt 0:00:25]} 37. Bc8 {[%emt 0:00:06]} b6 {[%emt 0:00:17]} 38. Bb7 {[%emt 0:00:05]} c5 {[%emt 0:00:13]} 39. Bd5+ {[%emt 0:00:09]} Kg7 {[%emt 0:00:04]} 40. dxc5 {[%emt 0:00:10]} dxc5 {[%emt 0:00:08]} 41. Re6 {[%emt 0:00:03]} Bxh4 {[%emt 0:00:12]} 42. Be4 {[%emt 0:00:04]} Bf6 {[%emt 0:00:11]} 43. Rc6 {[%emt 0:00:05]} Re8 {[%emt 0:00:05]} 44. Bd3 {[%emt 0:00:07]} g5 {[%emt 0:00:08]} 45. Bf5 {[%emt 0:00:04]} Re5 {[%emt 0:00:05]} 46. Bc8 {[%emt 0:00:04]} Re2+ {[%emt 0:00:17]} 47. Kb3 {[%emt 0:00:05]} Re4 {[%emt 0:00:04]} 48. Rc7+ {[%emt 0:00:07]} Re7 {[%emt 0:00:04]} (48... Kg6 $5 {[%cal Rg5g4]} 49. Rxa7 c4+ 50. Kb4 g4 $15) 49. Rc6 {[%emt 0:00:04]} Re4 {[%emt 0:00:04]} 50. Be6 {[%emt 0:00:05]} (50. Rc7+ $11 {keeps the balance.} Kg6 51. Rxa7) 50... g4 $17 {[%emt 0:00:09][%cal Bg5g4,Bg4g3][%mdl 32]} 51. Rc7+ {[%emt 0:00:07]} Kg6 {[%emt 0:00:06]} 52. Bd5 {[%emt 0:00:17]} Re7 {[%emt 0:00:04]} 53. Rc8 {[%emt 0:00:03]} (53. Rxe7 $142 Bxe7 54. Kc4) 53... g3 {[%emt 0:00:08]} 54. Kc4 {[%emt 0:00:04]} (54. Rg8+ $17 Bg7 55. a4) 54... Kf5 {[%emt 0:00:08]} 55. Rg8 {[%emt 0:00:05]} Bg5 {[%emt 0:00:06]} 56. Rf8+ {[%emt 0:00:06]} Bf6 {[%emt 0:00:04]} (56... Kg4 $17 {...Rd7 is the strong threat.} 57. Kb5 Rh7 58. Be6+ Kh4) 57. a4 $2 {[%emt 0:00:10]} (57. Rg8 $1 $11) 57... Re2 {[%emt 0:00:06]} 58. Rg8 {[%emt 0:00:09]} Bg5 {[%emt 0:00:06]} ({Worse is} 58... Rxb2 59. Rxg3 Bd8 60. Rg7 $11) ({Black should play} 58... Kf4 $17 59. Kb3 Rd2) 59. Rf8+ $15 {[%emt 0:00:05]} Bf6 {[%emt 0:00:04] Black is more active.} (59... Kg6 $1 $15 60. Rf1 Rh2) 60. Rg8 $19 {[%emt 0:00:04]} Bg5 $2 {[%emt 0:00:03]} ({Weaker is} 60... Rxb2 61. Rxg3 Ke5 62. Re3+ Kf4 63. Rf3+ Ke5 64. Re3+ Kf5 65. Rf3+ Kg5 66. Be4 $11) (60... Kf4 $19 {And now ...Rd2 would win.} 61. Kb3 Rd2) 61. Rg7 $2 {[%emt 0:00:32][%mdl 8192]} (61. Rf8+ $11 Bf6) 61... Rxb2 {[%emt 0:00:07]} 62. Rxa7 {[%emt 0:00:06]} g2 {[%emt 0:00:03]} 63. Bxg2 {[%emt 0:00:04]} Rxg2 {[%emt 0:00:03] KRB-KR} 64. Rb7 {[%emt 0:00:04]} (64. a5 $142 bxa5 65. Rxa5) 64... Bd8 {[%emt 0:00:22]} 65. Rd7 {[%emt 0:00:06]} Rg8 {[%emt 0:00:09] Threatens to win with ...Bf6.} 66. Kd5 {[%emt 0:00:05]} (66. Kb5 $142) 66... Bf6 {[%emt 0:00:05][%cal Og8d8]} 67. c4 $2 {[%emt 0:00:06] [#]} (67. Rb7 $19 Rd8+ 68. Kc4) 67... Ra8 {[%emt 0:00:05]} (67... Rd8 $142 68. Rxd8 Bxd8 69. Kd6 Ke4 70. Kd7 Bh4 71. Ke6 Kd4 72. Kd7 Kxc4 73. Kc6 Kb4 74. Kxb6 Bd8+ 75. Kc6 c4 76. Kd7 Ba5 77. Ke6 c3 78. Kf5 c2 79. Kg5 c1=Q+ 80. Kg4 Bc7 81. Kf5 Qf4+ 82. Ke6 Kc5 83. Ke7 Kd5 84. a5 Bxa5 85. Kd7 Qf7+ 86. Kc8 Qc7#) 68. Rd6 {[%emt 0:00:07]} (68. Rb7 $19 Ra6 69. Rb8) 68... Rd8 {[%emt 0:00:09] Black mates.} 69. Kc6 {[%emt 0:00:06]} Rxd6+ {[%emt 0:00:04]} 70. Kxd6 {[%emt 0:00:03]} Bc3 {[%emt 0:00:04]} 71. Kc6 {[%emt 0:00:04]} Ba5 {[%emt 0:00:03]} 72. Kd5 {[%emt 0:00:04]} Kf4 {[%emt 0:00:04]} 73. Kc6 {[%emt 0:00:13]} Ke4 {[%emt 0:00:04] Weighted Error Value: White=0.15 (very precise) /Black=0.22 (precise)} 0-1

[Event "AI Cup Div-3 2023"]
[Site "Online"]
[Date "2023.09.25"]
[Round "2.1"]
[White "Kramnik, Vladimir"]
[Black "Martinez Alcantara, Jose Eduardo"]
[Result "0-1"]
[Annotator "TA"]
[ECO "E14"]
[WhiteElo "2753"]
[BlackElo "2611"]
[PlyCount "118"]
[EventDate "2023.09.18"]
[EventType "k.o."]
[EventCountry "NET"]
[SourceTitle "playchess.com"]
[Source "ChessBase"]
[SourceQuality "1"]
[TimeControl "900+3"]

{[%evp 16,118,21,13,0,8,7,0,0,0,0,0,0,-12,0,0,0,0,-12,-30,0,0,0,0,0,0,0,0,0,0,0,27,56,-155,-133,-142,-149,-142,-135,-161,-172,-163,-156,-154,-150,-163,-138,-137,0,-187,-89,-97,-85,-80,-97,-86,-89,-145,-119,-161,-161,-280,-188,-275,-184,-192,-175,-216,-204,-199,-181,-194,-87,-56,-82,-238,-238,-235,-227,-216,-211,-198,-143,-164,-111,-340,-275,-275,-275,-256,-100,-243,-263,-260,0,0,0,-5093,-1996,-29971,-1552,-29996,-29997,-29997,-29998]} 1. d4 {[%emt 0:00:14]} Nf6 {[%emt 0:00:05]} 2. Nf3 {[%emt 0:00:01]} e6 {[%emt 0:00:01]} 3. e3 {[%emt 0:00:04]} b6 {[%emt 0:00:06]} 4. Bd3 {[%emt 0:00:06]} Bb7 {[%emt 0:00:01]} 5. O-O {[%emt 0:00:01]} Be7 {[%emt 0:00:30]} 6. c4 {[%emt 0:00:02]} O-O {[%emt 0:00:02]} 7. Nc3 {[%emt 0:00:05]} d5 {[%emt 0:00:14]} 8. cxd5 {[%emt 0:00:13]} exd5 {[%emt 0:00:00]} 9. b3 {[%emt 0:00:09]} a6 {[%emt 0:00:11] E14: Queen's Indian: Classical Variation (4 e3).} 10. Bb2 {[%emt 0:00:01]} Bd6 {[%emt 0:00:13]} 11. Rc1 {[%emt 0:00:16]} Nbd7 {[%emt 0:00:03] The position is equal.} 12. Ne2 {[%emt 0:00:04]} Re8 {[%emt 0:00:03] Wards off Ne5 The main line 12...Re8 scores better than 12...Qe7.} 13. Ng3 {[%emt 0:00:09]} g6 {[%emt 0:00:01]} 14. Rc2 {[%emt 0:00:04]} Qe7 {[%emt 0:00:24]} 15. Qe2 {[%emt 0:00:17]} c6 {[%emt 0:00:10]} 16. Rfc1 {[%emt 0:00:17]} a5 {[%emt 0:00:01] [#]} 17. Qd1 $146 {[%emt 0:01:06]} (17. a4 {seems wilder.} Ng4 18. Nd2 Qh4 19. Ndf1) ({Predecessor:} 17. a4 h5 18. Nf1 Ne4 19. N3d2 Ndf6 20. f3 Nxd2 21. Qxd2 Ba3 22. Bxa3 Qxa3 23. Ra2 {½-½ Mehar,C (2348)-Horvath,A (2533) Budapest Spring op 2019 (3)}) 17... Ne4 {[%emt 0:00:29]} (17... a4 $142) 18. Bxe4 $11 {[%emt 0:00:23]} dxe4 {[%emt 0:00:02]} 19. Nd2 {[%emt 0:00:02]} Nf6 {[%emt 0:01:14]} 20. Nc4 {[%emt 0:00:04]} Bxg3 {[%emt 0:00:04]} 21. hxg3 {[%emt 0:00:16]} Nd5 {[%emt 0:00:01]} 22. Ba3 {[%emt 0:00:21]} Qd7 {[%emt 0:00:17]} 23. Ne5 {[%emt 0:00:19]} Qe6 {[%emt 0:00:02]} 24. Nxc6 $2 {[%emt 0:01:25]} (24. Rxc6 $1 $14 {stays ahead.} Bxc6 25. Rxc6) 24... f6 $1 $17 {[%emt 0:00:02]} 25. Bb2 {[%emt 0:02:11]} Rec8 {[%emt 0:00:35][%cal Rc8c6] Black is more active.} 26. Ne5 {[%emt 0:00:03]} fxe5 {[%emt 0:00:51]} 27. dxe5 {[%emt 0:00:01]} Rd8 {[%emt 0:01:01][%cal Od5e3]} 28. Rd2 {[%emt 0:00:04]} Rd7 $1 {[%emt 0:00:08]} 29. Rc4 {[%emt 0:00:34]} Rad8 {[%emt 0:00:10][%cal Od5e3]} 30. Rcd4 {[%emt 0:00:14]} Bc6 {[%emt 0:01:14]} (30... Qxe5 31. Rxd5 Qxd5 32. Rxd5 Rxd5 33. Bd4 $16) 31. Qc1 {[%emt 0:01:27]} Bb7 {[%emt 0:01:45]} (31... Bb5 $17 {Hoping for ...Ba6.} 32. Rxe4 Nf4 33. Rxd7 Ne2+ 34. Kh2 Qxd7) 32. a3 $2 {[%emt 0:01:23]} (32. Qd1 $1 $11) 32... Rc8 {[%emt 0:01:15]} (32... Qxe5 33. Rxd5 Qe7 34. Rxd7 Rxd7 35. a4 Rxd2 36. Qxd2 $18) (32... Ba6 $1 $19 {has better winning chances.} 33. b4 axb4 34. axb4 Bd3) 33. Qd1 {[%emt 0:00:04]} h5 {[%emt 0:01:05]} (33... Qxe5 $2 34. Rxd5 Qxd5 35. Rxd5 Rxd5 36. Qg4 $18) 34. b4 {[%emt 0:00:19]} axb4 {[%emt 0:00:06]} (34... Qxe5 $2 35. Rxd5 Qxd5 36. Rxd5 Bxd5 37. Qd4 $18) 35. axb4 {[%emt 0:00:00]} b5 {[%emt 0:01:10]} (35... Qxe5 $2 36. Rxd5 Qxd5 37. Rxd5 Rxd5 38. Qa4 $18) 36. Qb3 {[%emt 0:00:35] Dodges Rc4} (36. Qf1 $142) 36... Rcd8 {[%emt 0:00:00]} (36... Qxe5 $6 37. Rxd5 Qe6 38. Rxd7 $11) 37. Qd1 {[%emt 0:00:53]} Bc6 {[%emt 0:00:47][%cal Od5b4]} (37... Qxe5 38. Rxd5 Rxd5 39. Bxe5 Rxd2 40. Qb3+ Bd5 41. Qc3 $16) 38. Qc1 {[%emt 0:00:18]} (38. Qa1 {was worth a try.}) 38... Ne7 {[%emt 0:00:31]} 39. Rc2 {[%emt 0:00:52]} (39. Rxd7 {keeps fighting.} Rxd7 40. Rxd7 Bxd7 41. Qa1) 39... Rd5 {[%emt 0:00:19]} (39... Qxe5 $2 40. Rxd7 $18) 40. Rxd5 {[%emt 0:00:21]} Bxd5 {[%emt 0:00:00]} 41. Rd2 {[%emt 0:00:27]} Rc8 {[%emt 0:00:02]} 42. Qa1 {[%emt 0:00:10]} g5 {[%emt 0:00:13]} 43. Qa5 {[%emt 0:00:20]} h4 {[%emt 0:00:12]} (43... Qc6 $19 {And now ...Ra8 would win.} 44. Qa7 Nf5) 44. Qxb5 {[%emt 0:00:16]} Kf7 {[%emt 0:00:02]} (44... Bc4 {looks sharper.} 45. Qb7 hxg3 46. fxg3 Nd5) 45. Qe2 $2 {[%emt 0:00:19] White is weak on the light squares} (45. Qf1 $17 {is a better defense.}) 45... Rh8 $1 $19 {[%emt 0:00:01]} 46. g4 {[%emt 0:00:04] [#]} h3 $1 {[%emt 0:00:01]} 47. g3 {[%emt 0:00:10]} h2+ {[%emt 0:00:01]} 48. Kh1 {[%emt 0:00:00]} Rb8 {[%emt 0:00:17]} ({Black should play} 48... Rd8 $19 {...Bc4 would be deadly.} 49. Rc2 Bb3) 49. Qd1 {[%emt 0:00:15] [#]} Bb3 {[%emt 0:00:15]} ({Inferior is} 49... Rxb4 50. Ba3 Rb5 51. Qf1 $17) (49... Rd8 $1 $19 50. Bd4 Bc4) 50. Qc1 $2 {[%emt 0:00:03]} (50. Qe2 $17) 50... Qxg4 {[%emt 0:00:08]} (50... Rxb4 51. Ba3 Rb7 52. Bxe7 Rxe7 53. Qb1 $19) 51. e6+ {[%emt 0:00:01]} Bxe6 {[%emt 0:00:01] aiming for ...Qh3.} ({Worse is} 51... Qxe6 52. Qc3 $17) 52. Qc3 {[%emt 0:00:07]} Qf3+ {[%emt 0:00:40]} 53. Kxh2 {[%emt 0:00:02]} Rg8 {[%emt 0:00:00] Inhibits Qg7+.} 54. b5 {[%emt 0:00:07]} Qh5+ $2 {[%emt 0:00:18]} ({Better is} 54... Nd5 $19 55. Qe5 Nf6) 55. Kg1 $11 {[%emt 0:00:02] Black must now prevent Qf6+.} Rg6 {[%emt 0:00:00] Against Qf6+} (55... Qf3 $5 56. Rd6 $8 Rg6 $11) 56. f4 $2 {[%emt 0:00:06][%mdl 8192]} (56. Rd8 $11) 56... Rh6 {[%emt 0:00:11]} (56... gxf4 $142 57. exf4 Rh6 58. Qg7+ Ke8 59. Qxh6 Qxh6) 57. Qg7+ $19 {[%emt 0:00:02]} Ke8 {[%emt 0:00:00] ( -> ...Qh1+)} 58. Rg2 {[%emt 0:00:01]} Qd1+ {[%emt 0:00:04]} 59. Kf2 {[%emt 0:00:02]} Qd2+ {[%emt 0:00:01] An entertaining game by Martinez Alcantara.   Weighted Error Value: White=0.49/Black=0.40} 0-1

[Event "AI Cup Div-3 2023"]
[Site "Online"]
[Date "2023.09.25"]
[Round "2.1"]
[White "Robson, Ray"]
[Black "Durarbayli, Vasif"]
[Result "0-1"]
[Annotator "TA"]
[ECO "B51"]
[WhiteElo "2699"]
[BlackElo "2625"]
[PlyCount "116"]
[EventDate "2023.09.18"]
[EventType "k.o."]
[EventCountry "NET"]
[SourceTitle "playchess.com"]
[Source "ChessBase"]
[SourceQuality "1"]
[TimeControl "900+3"]

{[%evp 9,116,3,15,5,28,23,23,21,28,27,29,39,33,0,27,13,11,0,0,0,0,-25,-22,-41,-24,-25,-32,-44,-35,-46,-37,-33,-39,-41,-50,-50,-53,-60,-56,-48,-40,-52,-57,-51,-60,-64,-37,-35,-41,-44,-34,-38,-38,-29,0,0,0,0,0,2,0,0,0,-3,0,0,0,0,0,0,0,0,0,4,10,0,0,-235,-217,-412,-385,-682,-595,-1146,-622,-955,-596,-954,-916,-29984,-29985,-29985,-29980,-29983,-29983,-29986,-29987,-29988,-29986,-29989,-29990,-29992,-29993,-29993,-29994,-29995,-29996,-29996,-29997]} 1. e4 {[%emt 0:00:31]} c5 {[%emt 0:00:09]} 2. Nf3 {[%emt 0:00:01]} d6 {[%emt 0:00:01]} 3. Bb5+ {[%emt 0:00:42]} Nd7 {[%emt 0:00:03]} 4. a4 {[%emt 0:00:09]} Ngf6 {[%emt 0:00:04]} 5. Nc3 {[%emt 0:00:01]} a6 {[%emt 0:00:05]} 6. Be2 {[%emt 0:00:01] B51: Sicilian: Moscow Variation (3 Bb5+) without 3...Bd7.} g6 {[%emt 0:00:09]} 7. a5 {[%emt 0:00:01]} Bg7 {[%emt 0:00:02]} 8. O-O {[%emt 0:00:02] White has an edge.} O-O {[%emt 0:00:05]} 9. d3 {[%emt 0:00:01]} b5 {[%emt 0:00:05]} 10. axb6 {[%emt 0:00:01]} Nxb6 {[%emt 0:00:18][%cal Bd7b6,Bb6d5,Bd5b4][%mdl 32]} 11. e5 {[%emt 0:00:54]} Nfd5 {[%emt 0:01:01]} 12. Nxd5 {[%emt 0:00:41]} Nxd5 {[%emt 0:00:03]} 13. exd6 {[%emt 0:00:04]} exd6 {[%emt 0:00:18]} 14. d4 {[%emt 0:00:27]} Bb7 {[%emt 0:02:22] [#]} 15. c4 $146 {[%emt 0:01:18]} ({Predecessor:} 15. c3 Qb6 16. dxc5 dxc5 17. Nd2 Qc7 18. Nc4 Rfd8 19. Qa4 Nb6 20. Nxb6 Qxb6 21. Qa5 {½-½ Csiki,E (2336)-Vantika,A (2367) Budapest Vezerkepzo GM-B 03 2023 (1)}) 15... Nb4 {[%emt 0:00:10]} 16. d5 {[%emt 0:01:17]} Re8 {[%emt 0:00:23]} 17. Bg5 {[%emt 0:00:22]} Qc7 {[%emt 0:00:43]} 18. Qd2 {[%emt 0:00:20] [#]} h6 $1 {[%emt 0:00:35]} 19. Be3 {[%emt 0:01:35]} (19. Bf4 g5) 19... Bc8 {[%emt 0:00:18]} 20. Bd1 {[%emt 0:00:32]} Kh7 {[%emt 0:00:21]} 21. Ba4 {[%emt 0:00:05]} Re4 {[%emt 0:00:42]} 22. Rfc1 {[%emt 0:00:38]} Bf5 {[%emt 0:01:53]} 23. Ra3 {[%emt 0:00:13]} Qd8 {[%emt 0:00:24]} 24. h3 {[%emt 0:01:43]} Qf6 {[%emt 0:00:12]} 25. Rb3 {[%emt 0:00:02]} a5 {[%emt 0:00:42]} 26. Nh2 {[%emt 0:00:10][%cal Bf3h2,Bh2f1,Bf1g3,Bg3e2,Be2f4,Bf4e6][%mdl 32]} Ra7 {[%emt 0:00:55]} 27. Nf1 {[%emt 0:00:07]} Bd7 {[%emt 0:00:27] Black is more active.} (27... Qh4 {with more complications.} 28. Bb5 Bxh3 29. Ng3 Rg4) 28. Bxd7 {[%emt 0:00:24]} Rxd7 {[%emt 0:00:00]} 29. Ng3 {[%emt 0:00:09]} Re8 {[%emt 0:00:52]} 30. Ra1 {[%emt 0:01:31]} Qh4 {[%emt 0:00:02]} 31. Qc1 {[%emt 0:00:11]} Rde7 {[%emt 0:00:51][%cal Oe7e3]} 32. Rxa5 {[%emt 0:00:18]} f5 {[%emt 0:00:01][%cal Of5f4]} 33. Ne2 {[%emt 0:00:59] Nf4 would be deadly.} Qe4 {[%emt 0:00:27]} 34. Nf4 {[%emt 0:00:21]} Nc2 {[%emt 0:00:24]} 35. Ra4 {[%emt 0:00:24]} Nxe3 {[%emt 0:01:14]} 36. fxe3 {[%emt 0:00:00]} h5 {[%emt 0:00:01]} 37. Ne6 {[%emt 0:00:15]} Bh6 {[%emt 0:00:00] Repels Ng5+} 38. Qd2 {[%emt 0:00:12]} g5 {[%emt 0:00:16]} 39. Qd3 {[%emt 0:00:06] [#] Black must now prevent Qxe4.} Qe5 {[%emt 0:00:10]} 40. Ra1 {[%emt 0:00:09] Strongly threatening Rf1.} g4 $1 {[%emt 0:00:02]} 41. Rf1 {[%emt 0:00:02]} Rf7 {[%emt 0:00:07]} 42. h4 {[%emt 0:00:05]} Kg6 {[%emt 0:00:07]} 43. Rf2 $2 {[%emt 0:00:03] Black converts the advantage convincingly.} (43. Qe2 $11 {and White stays safe.}) 43... Qg3 $19 {[%emt 0:00:01]} 44. Qf1 $2 {[%emt 0:00:05]} (44. Nf4+ Bxf4 45. Rxf4) 44... Qxh4 {[%emt 0:00:02] ...g3 is the strong threat.} (44... Bxe3 $2 {too greedy.} 45. Rxe3 Qxe3 46. Qe2 Qxe2 47. Rxe2 $19) 45. g3 $2 {[%emt 0:00:03]} (45. Nf4+ Kg7 46. Rc2 (46. Ne6+ $2 Rxe6 47. dxe6 g3 $19)) 45... Qxg3+ {[%emt 0:00:01]} 46. Rg2 {[%emt 0:00:00]} Qe5 {[%emt 0:00:02]} 47. Qf2 {[%emt 0:00:04]} Ra8 {[%emt 0:00:06]} 48. Qe1 {[%emt 0:00:04] Prevents Ra1} Rfa7 {[%emt 0:00:01] ( -> ...Ra1)} 49. Ra3 {[%emt 0:00:03] Repels Ra1} Rxa3 {[%emt 0:00:01] Black mates.} 50. bxa3 {[%emt 0:00:00]} Qxe3+ {[%emt 0:00:01]} 51. Qxe3 {[%emt 0:00:02]} Bxe3+ {[%emt 0:00:00] KRB-KRN} 52. Kh1 {[%emt 0:00:00]} Rxa3 {[%emt 0:00:01]} 53. Rb2 {[%emt 0:00:01]} h4 {[%emt 0:00:03]} 54. Rb7 {[%emt 0:00:04]} Ra1+ {[%emt 0:00:03]} 55. Kh2 {[%emt 0:00:01]} Ra2+ {[%emt 0:00:00]} 56. Kh1 {[%emt 0:00:01]} g3 {[%emt 0:00:02][%csl Gg3][%cal Ra2h2]} 57. Nf8+ {[%emt 0:00:03]} Kh5 {[%emt 0:00:07][%csl Gg3][%cal Ra2h2]} 58. Rh7+ {[%emt 0:00:05]} Kg4 {[%emt 0:00:01] An entertaining game by Durarbayli.   Weighted Error Value: White=0.68/Black=0.26 (precise)} 0-1

[Event "AI Cup Div-3 2023"]
[Site "Online"]
[Date "2023.09.25"]
[Round "2.1"]
[White "Xiong, Jeffery"]
[Black "Muradli, Mahammad"]
[Result "1/2-1/2"]
[Annotator "TA"]
[ECO "D61"]
[WhiteElo "2693"]
[BlackElo "2550"]
[PlyCount "35"]
[EventDate "2023.09.18"]
[EventType "k.o."]
[EventCountry "NET"]
[SourceTitle "playchess.com"]
[Source "ChessBase"]
[SourceQuality "1"]
[TimeControl "900+3"]

{[%evp 20,35,34,33,35,36,32,11,24,9,25,-11,0,-18,-18,-20,-20,-7]} 1. d4 {[%emt 0:00:03]} Nf6 {[%emt 0:00:17]} 2. c4 {[%emt 0:00:02]} e6 {[%emt 0:00:02]} 3. Nc3 {[%emt 0:00:01]} d5 {[%emt 0:00:07]} 4. Bg5 {[%emt 0:00:02]} Be7 {[%emt 0:00:09]} 5. e3 {[%emt 0:00:01]} Nbd7 {[%emt 0:00:04]} 6. Nf3 {[%emt 0:00:03]} h6 {[%emt 0:00:06]} 7. Bh4 {[%emt 0:00:05]} O-O {[%emt 0:00:05]} 8. Qc2 {[%emt 0:00:04]} c5 {[%emt 0:00:23]} 9. dxc5 {[%emt 0:00:07]} dxc4 {[%emt 0:00:14]} 10. Bxc4 {[%emt 0:00:16]} Nxc5 {[%emt 0:00:07]} 11. O-O {[%emt 0:00:01]} a6 {[%emt 0:00:49] D61: Queen's Gambit Declined: Classical: 7 Qc2.} 12. Rfd1 {[%emt 0:00:04]} Qe8 {[%emt 0:00:11] [#]} 13. a4 $1 $146 {[%emt 0:00:35][%mdl 8] A relevant novelty.} ({Predecessor:} 13. b4 Ncd7 14. b5 Nc5 15. Rab1 b6 16. Ne5 Bb7 17. bxa6 Bxa6 18. Rxb6 Bxc4 19. Nxc4 {½-½ Artemiev,V (2704)-Nakamura,H (2736) Chessable Masters KO rapid 2021 (1.12)}) 13... b6 {[%emt 0:00:16]} 14. b4 {[%emt 0:00:09]} Ncd7 {[%emt 0:00:23]} 15. b5 {[%emt 0:02:14]} a5 {[%emt 0:01:15] The position is equal.} 16. Ne2 {[%emt 0:01:26]} Bb7 {[%emt 0:00:25]} 17. Ned4 {[%emt 0:00:00]} Rc8 $1 {[%emt 0:00:11]} 18. Qa2 {[%emt 0:00:02] Weighted Error Value: White=0.12 (very precise) /Black=0.00 (flawless)} 1/2-1/2